[Event "FIDE WYCC Girls U18 2023"]
[Site "Montesilvano"]
[Date "2023.11.18"]
[Round "6.30"]
[White "Soares, Sara Joana De Moura "]
[Black "Wolf, Elena"]
[Result "*"]
[ECO "D35"]
[WhiteElo "1772"]
[BlackElo "1195"]
[Annotator "NA"]
[PlyCount "61"]
[EventDate "2023.11.13"]
[EventType "swiss"]
[EventCountry "ITA"]
[SourceTitle "playchess.com"]
[Source "ChessBase"]
[SourceQuality "1"]
[TimeControl "40/5400+30:1800+30"]

1. d4 {[%emt 0:00:21]} d5 {[%emt 0:00:13]} 2. c4 {[%emt 0:00:31]} e6 {[%emt 0:00:10]} 3. Nc3 {[%emt 0:00:34]} Nf6 {[%emt 0:00:20]} 4. cxd5 {[%emt 0:00:41]} exd5 {[%emt 0:00:27]} 5. Bg5 {[%emt 0:00:15]} Be7 {[%emt 0:00:21]} 6. e3 {[%emt 0:00:35]} O-O {[%emt 0:00:43]} 7. Bd3 {[%emt 0:00:26]} Re8 {[%emt 0:00:17]} 8. Qc2 {[%emt 0:00:28]} h6 {[%emt 0:00:17]} 9. Bh4 {[%emt 0:01:27]} c5 {[%emt 0:01:28]} 10. Nf3 {[%emt 0:19:28]} Nc6 {[%emt 0:03:44]} 11. Be2 {[%emt 0:07:05]} Bg4 {[%emt 0:06:05]} 12. Rd1 {[%emt 0:07:19]} c4 {[%emt 0:10:41]} 13. O-O {[%emt 0:08:27]} Rc8 {[%emt 0:06:39]} 14. Ne5 {[%emt 0:13:45]} Bxe2 {[%emt 0:05:24]} 15. Qxe2 {[%emt 0:00:07]} Bd6 {[%emt 0:10:50]} 16. Ng4 {[%emt 0:03:07]} Be7 {[%emt 0:03:21]} 17. Bxf6 {[%emt 0:02:46]} Bxf6 {[%emt 0:01:04]} 18. Nxf6+ {[%emt 0:00:08]} Qxf6 {[%emt 0:00:13]} 19. Nxd5 {[%emt 0:00:10]} Qd8 {[%emt 0:06:08]} 20. Qf3 {[%emt 0:01:01]} b5 {[%emt 0:04:03]} 21. h3 {[%emt 0:06:24]} Re6 {[%emt 0:02:29]} 22. Nc3 {[%emt 0:02:57]} a6 23. Ne4 {[%emt 0:00:41]} Nb4 {[%emt 0:04:15]} 24. a3 {[%emt 0:03:00]} Nd3 {[%emt 0:02:30]} 25. Rd2 {[%emt 0:02:19]} a5 {[%emt 0:01:41]} 26. Rc2 {[%emt 0:03:19]} Rec6 {[%emt 0:04:28]} 27. Rd1 {[%emt 0:04:37]} Rb6 {[%emt 0:04:07]} 28. Nc5 {[%emt 0:02:39]} Rxc5 {[%emt 0:05:30]} 29. dxc5 {[%emt 0:00:08]} Rf6 {[%emt 0:00:45]} 30. Qg4 {[%emt 0:00:53]} Qc7 {[%emt 0:03:02]} 31. Qd4 {[%emt 0:01:29]} *

[Event "FIDE WYCC Girls U18 2023"]
[Site "Montesilvano"]
[Date "2023.11.18"]
[Round "6.31"]
[White "O'Carroll, Om"]
[Black "Monteiro, Helen Ramazzotte"]
[Result "*"]
[ECO "B13"]
[WhiteElo "1737"]
[BlackElo "1447"]
[Annotator "NA"]
[PlyCount "59"]
[EventDate "2023.11.13"]
[EventType "swiss"]
[EventCountry "ITA"]
[SourceTitle "playchess.com"]
[Source "ChessBase"]
[SourceQuality "1"]
[TimeControl "40/5400+30:1800+30"]

1. e4 {[%emt 0:00:01]} c6 {[%emt 0:00:38]} 2. d4 {[%emt 0:00:06]} d5 {[%emt 0:00:06]} 3. exd5 {[%emt 0:00:05]} cxd5 {[%emt 0:00:07]} 4. Bd3 {[%emt 0:00:06]} Nc6 {[%emt 0:00:13]} 5. c3 {[%emt 0:00:06]} Nf6 {[%emt 0:00:42]} 6. Bf4 {[%emt 0:00:11]} Bg4 {[%emt 0:00:40]} 7. Qb3 {[%emt 0:00:12]} Qd7 {[%emt 0:00:44]} 8. Nd2 {[%emt 0:00:49]} e6 {[%emt 0:00:36]} 9. Ngf3 {[%emt 0:00:56]} Bd6 {[%emt 0:00:43]} 10. Bxd6 {[%emt 0:00:24]} Qxd6 {[%emt 0:00:18]} 11. O-O {[%emt 0:00:57]} O-O {[%emt 0:00:27]} 12. Rae1 {[%emt 0:01:42]} Bxf3 {[%emt 0:01:16]} 13. Nxf3 {[%emt 0:00:27]} Qc7 {[%emt 0:02:58]} 14. Kh1 {[%emt 0:08:25]} Rab8 {[%emt 0:03:34]} 15. Ne5 {[%emt 0:01:59]} Nxe5 {[%emt 0:00:58]} 16. dxe5 {[%emt 0:00:39]} Nd7 {[%emt 0:01:50]} 17. Qc2 {[%emt 0:15:22]} g6 {[%emt 0:04:27]} 18. Qe2 {[%emt 0:05:36]} Rfc8 {[%emt 0:03:27]} 19. f4 {[%emt 0:03:45]} a6 {[%emt 0:06:48]} 20. Rf3 {[%emt 0:05:24]} Kg7 {[%emt 0:03:59]} 21. Rh3 {[%emt 0:02:40]} Nc5 {[%emt 0:01:14]} 22. Bb1 {[%emt 0:01:25]} Na4 {[%emt 0:01:31]} 23. Qd2 {[%emt 0:09:17]} h5 {[%emt 0:10:42]} 24. f5 {[%emt 0:06:19]} exf5 {[%emt 0:04:47]} 25. Bxf5 {[%emt 0:11:42]} Rh8 {[%emt 0:16:05]} 26. e6 {[%emt 0:06:10]} Nb6 {[%emt 0:19:28]} 27. exf7 {[%emt 0:06:45]} gxf5 {[%emt 0:04:25]} 28. Qg5+ {[%emt 0:00:21]} Kf8 {[%emt 0:01:34]} 29. Rxh5 {[%emt 0:00:56]} Kxf7 {[%emt 0:02:15]} 30. Qxf5+ {[%emt 0:00:17]} *

[Event "FIDE WYCC Girls U18 2023"]
[Site "Montesilvano"]
[Date "2023.11.18"]
[Round "6.32"]
[White "Darweeche, Roaa"]
[Black "Tikvesli, Ceylin"]
[Result "*"]
[ECO "A45"]
[WhiteElo "1406"]
[BlackElo "1736"]
[Annotator "NA"]
[PlyCount "73"]
[EventDate "2023.11.13"]
[EventType "swiss"]
[EventCountry "ITA"]
[SourceTitle "playchess.com"]
[Source "ChessBase"]
[SourceQuality "1"]
[TimeControl "40/5400+30:1800+30"]

1. d4 {[%emt 0:00:05]} Nf6 {[%emt 0:00:11]} 2. Nc3 {[%emt 0:00:17]} d5 {[%emt 0:00:13]} 3. Nf3 {[%emt 0:00:26]} g6 {[%emt 0:02:58]} 4. Bf4 {[%emt 0:00:27]} Bg7 {[%emt 0:00:47]} 5. h3 {[%emt 0:00:38]} c5 {[%emt 0:03:44]} 6. e3 {[%emt 0:01:36]} a6 {[%emt 0:05:00]} 7. dxc5 {[%emt 0:04:44]} Nbd7 {[%emt 0:14:07]} 8. Be2 {[%emt 0:08:51]} Nxc5 {[%emt 0:02:23]} 9. O-O {[%emt 0:01:33]} O-O {[%emt 0:04:13]} 10. Be5 {[%emt 0:03:57]} e6 {[%emt 0:04:55]} 11. Rb1 {[%emt 0:11:40]} b5 {[%emt 0:06:27]} 12. b4 {[%emt 0:01:47]} Ncd7 {[%emt 0:05:38]} 13. Bd4 {[%emt 0:00:33]} Qc7 {[%emt 0:00:34]} 14. Bc5 {[%emt 0:13:47]} Nxc5 {[%emt 0:03:43]} 15. bxc5 {[%emt 0:00:10]} Qxc5 {[%emt 0:00:05]} 16. Qd4 {[%emt 0:01:20]} Qc7 {[%emt 0:01:17]} 17. Qb4 {[%emt 0:01:15]} Nd7 {[%emt 0:05:43]} 18. Nd4 {[%emt 0:01:39]} Nb6 {[%emt 0:04:48]} 19. Rfc1 {[%emt 0:02:05]} Bd7 {[%emt 0:03:07]} 20. Nd1 {[%emt 0:07:10]} e5 {[%emt 0:02:44]} 21. Nf3 {[%emt 0:01:38]} Rfc8 {[%emt 0:03:39]} 22. Nb2 {[%emt 0:05:33]} a5 {[%emt 0:04:23]} 23. Qd2 {[%emt 0:01:35]} Bf8 {[%emt 0:01:03]} 24. c3 {[%emt 0:02:28]} Ba3 {[%emt 0:00:46]} 25. g4 {[%emt 0:02:18]} Na4 {[%emt 0:01:24]} 26. Rc2 {[%emt 0:04:07]} Bxb2 {[%emt 0:06:43]} 27. Rbxb2 {[%emt 0:00:24]} Nxb2 {[%emt 0:00:17]} 28. Rxb2 {[%emt 0:00:03]} Qxc3 {[%emt 0:00:23]} 29. Qxc3 {[%emt 0:00:02]} Rxc3 {[%emt 0:00:01]} 30. Nxe5 {[%emt 0:00:35]} Be8 {[%emt 0:01:30]} 31. Bxb5 {[%emt 0:01:16]} Rb8 {[%emt 0:01:55]} 32. a4 {[%emt 0:00:24]} Bxb5 {[%emt 0:01:39]} 33. axb5 {[%emt 0:00:06]} a4 {[%emt 0:00:07]} 34. Ra2 {[%emt 0:01:30]} a3 {[%emt 0:00:15]} 35. g5 {[%emt 0:03:18]} Rxb5 {[%emt 0:00:47]} 36. Rd2 {[%emt 0:01:14]} Ra5 {[%emt 0:01:27]} 37. Ra2 {[%emt 0:00:21]} *

[Event "FIDE WYCC Girls U18 2023"]
[Site "Montesilvano"]
[Date "2023.11.18"]
[Round "6.33"]
[White "Lunar Villaman, Sofia"]
[Black "Gonzalez Romo, Greshya Jocelyn"]
[Result "*"]
[WhiteElo "1305"]
[BlackElo "1494"]
[Annotator "NA"]
[PlyCount "44"]
[EventDate "2023.11.13"]
[EventType "swiss"]
[EventCountry "ITA"]
[SourceTitle "playchess.com"]
[Source "ChessBase"]
[SourceQuality "1"]
[TimeControl "40/5400+30:1800+30"]

1. d4 {[%emt 0:00:03]} d5 {[%emt 0:00:07]} 2. Bf4 {[%emt 0:00:05]} Nf6 {[%emt 0:00:27]} 3. Nf3 {[%emt 0:00:04]} e6 {[%emt 0:00:11]} 4. e3 {[%emt 0:00:19]} Bd6 {[%emt 0:00:20]} 5. Bg3 {[%emt 0:01:07]} O-O {[%emt 0:01:41]} 6. c3 {[%emt 0:00:10]} c5 {[%emt 0:01:25]} 7. Nbd2 {[%emt 0:05:21]} Qc7 {[%emt 0:05:34]} 8. Qc2 {[%emt 0:04:23]} Nbd7 {[%emt 0:08:08]} 9. a4 {[%emt 0:10:43]} Re8 {[%emt 0:08:22]} 10. Bb5 {[%emt 0:02:17]} cxd4 {[%emt 0:17:19]} 11. exd4 {[%emt 0:02:56]} h6 {[%emt 0:05:16]} 12. O-O {[%emt 0:10:12]} Bxg3 {[%emt 0:04:31]} 13. hxg3 {[%emt 0:03:16]} b6 {[%emt 0:03:42]} 14. Ne5 {[%emt 0:10:54]} a6 {[%emt 0:04:27]} 15. Bxd7 {[%emt 0:08:58]} Bxd7 {[%emt 0:01:01]} 16. Rfe1 {[%emt 0:01:07]} Rec8 {[%emt 0:07:03]} 17. Qd3 {[%emt 0:05:01]} Be8 {[%emt 0:06:37]} 18. Ndf3 {[%emt 0:10:21]} Qb7 {[%emt 0:04:49]} 19. Qe3 {[%emt 0:10:55]} b5 {[%emt 0:03:43]} 20. axb5 {[%emt 0:02:46]} axb5 {[%emt 0:01:13]} 21. g4 {[%emt 0:02:24]} Ne4 {[%emt 0:03:22]} 22. Nd2 {[%emt 0:01:45]} Nd6 {[%emt 0:04:07]} *

[Event "FIDE WYCC Girls U18 2023"]
[Site "Montesilvano"]
[Date "2023.11.18"]
[Round "6.34"]
[White "Saraci, Rinesa"]
[Black "Lu, Yun-Ru"]
[Result "1-0"]
[ECO "C78"]
[WhiteElo "1481"]
[BlackElo "1284"]
[Annotator "NA"]
[PlyCount "101"]
[EventDate "2023.11.13"]
[EventType "swiss"]
[EventCountry "ITA"]
[SourceTitle "playchess.com"]
[Source "ChessBase"]
[SourceQuality "1"]
[TimeControl "40/5400+30:1800+30"]

1. e4 {[%emt 0:00:04]} e5 {[%emt 0:00:06]} 2. Nf3 {[%emt 0:00:08]} Nc6 {[%emt 0:00:07]} 3. Bb5 {[%emt 0:00:20]} a6 {[%emt 0:00:16]} 4. Ba4 {[%emt 0:00:15]} Nf6 {[%emt 0:00:26]} 5. O-O {[%emt 0:00:29]} Bc5 {[%emt 0:00:30]} 6. d3 {[%emt 0:01:18]} h6 {[%emt 0:00:24]} 7. Bxc6 {[%emt 0:03:52]} dxc6 {[%emt 0:03:06]} 8. Nxe5 {[%emt 0:01:54]} O-O {[%emt 0:00:25]} 9. h3 {[%emt 0:01:21]} Re8 {[%emt 0:00:25]} 10. Nf3 {[%emt 0:01:55]} Bd6 {[%emt 0:00:51]} 11. Re1 {[%emt 0:01:43]} Be5 {[%emt 0:01:56]} 12. d4 {[%emt 0:01:52]} Bxd4 {[%emt 0:10:33]} 13. Qxd4 {[%emt 0:01:11]} Qxd4 {[%emt 0:00:31]} 14. Nxd4 {[%emt 0:00:08]} Nxe4 {[%emt 0:00:06]} 15. f3 {[%emt 0:01:13]} Nf6 {[%emt 0:00:17]} 16. Rxe8+ {[%emt 0:00:44]} Nxe8 {[%emt 0:00:03]} 17. Nc3 {[%emt 0:02:25]} Bd7 {[%emt 0:01:03]} 18. Bf4 {[%emt 0:01:51]} Rd8 {[%emt 0:00:53]} 19. Re1 {[%emt 0:02:36]} c5 {[%emt 0:03:05]} 20. Nb3 {[%emt 0:01:05]} c4 {[%emt 0:00:13]} 21. Nc5 {[%emt 0:01:07]} Bc8 {[%emt 0:01:37]} 22. Kf2 {[%emt 0:07:23]} c6 {[%emt 0:01:13]} 23. N3a4 {[%emt 0:05:08]} Nf6 {[%emt 0:00:45]} 24. Nb6 {[%emt 0:01:21]} Nd5 {[%emt 0:01:39]} 25. Nxd5 {[%emt 0:01:50]} cxd5 {[%emt 0:00:07]} 26. Bc7 {[%emt 0:04:34]} Rf8 {[%emt 0:00:35]} 27. Re5 {[%emt 0:01:15]} d4 {[%emt 0:01:12]} 28. Rd5 {[%emt 0:00:14]} c3 {[%emt 0:00:42]} 29. bxc3 {[%emt 0:05:26]} dxc3 {[%emt 0:00:07]} 30. Rd3 {[%emt 0:02:35]} Bf5 {[%emt 0:00:17]} 31. Rxc3 {[%emt 0:00:55]} Rc8 {[%emt 0:00:11]} 32. Nxb7 {[%emt 0:00:31]} f6 {[%emt 0:00:41]} 33. Nd6 {[%emt 0:00:06]} Rxc7 {[%emt 0:07:59]} 34. Rxc7 {[%emt 0:00:14]} Be6 {[%emt 0:00:17]} 35. c4 {[%emt 0:00:54]} Kf8 {[%emt 0:00:48]} 36. Ra7 {[%emt 0:00:19]} a5 {[%emt 0:00:20]} 37. Rxa5 {[%emt 0:00:53]} Ke7 {[%emt 0:00:07]} 38. c5 {[%emt 0:00:07]} Kd7 {[%emt 0:00:27]} 39. Ra6 {[%emt 0:00:44]} Kc7 {[%emt 0:00:33]} 40. a4 {[%emt 0:00:00]} f5 {[%emt 0:00:00]} 41. a5 {[%emt 0:03:26]} g5 {[%emt 0:01:32]} 42. Ne8+ {[%emt 0:00:25]} Kd7 {[%emt 0:00:37]} 43. Rxe6 {[%emt 0:00:07]} Kxe6 {[%emt 0:00:08]} 44. a6 {[%emt 0:00:03]} Kd7 {[%emt 0:00:11]} 45. a7 {[%emt 0:00:07]} Kxe8 {[%emt 0:00:17]} 46. a8=Q+ {[%emt 0:00:06]} Kf7 {[%emt 0:00:09]} 47. Qd5+ {[%emt 0:00:37]} Kg6 {[%emt 0:00:20]} 48. Qe6+ {[%emt 0:01:20]} Kh5 {[%emt 0:00:26]} 49. g3 {[%emt 0:00:23]} g4 {[%emt 0:00:25]} 50. fxg4+ {[%emt 0:00:26]} Kg5 {[%emt 0:00:13]} 51. Qxf5# {[%emt 0:00:16]} 1-0

[Event "FIDE WYCC Girls U18 2023"]
[Site "Montesilvano"]
[Date "2023.11.18"]
[Round "6.35"]
[White "Changkachith, Alyssa"]
[Black "Serina Arafat"]
[Result "*"]
[WhiteElo "1147"]
[BlackElo "1413"]
[Annotator "NA"]
[PlyCount "46"]
[EventDate "2023.11.13"]
[EventType "swiss"]
[EventCountry "ITA"]
[SourceTitle "playchess.com"]
[Source "ChessBase"]
[SourceQuality "1"]
[TimeControl "40/5400+30:1800+30"]

1. e4 {[%emt 0:00:02]} e6 {[%emt 0:00:27]} 2. d4 {[%emt 0:00:29]} d5 {[%emt 0:00:06]} 3. exd5 {[%emt 0:04:06]} exd5 {[%emt 0:00:06]} 4. Bf4 {[%emt 0:01:10]} Nf6 {[%emt 0:02:06]} 5. Nc3 {[%emt 0:01:57]} a6 {[%emt 0:00:34]} 6. h3 {[%emt 0:02:12]} Be7 {[%emt 0:01:05]} 7. Nf3 {[%emt 0:04:15]} O-O {[%emt 0:02:43]} 8. Bd3 {[%emt 0:00:57]} b5 {[%emt 0:01:46]} 9. O-O {[%emt 0:01:15]} Bb7 {[%emt 0:00:54]} 10. Re1 {[%emt 0:07:51]} Nbd7 {[%emt 0:03:19]} 11. Bxc7 {[%emt 0:10:06]} Qxc7 {[%emt 0:03:53]} 12. Rxe7 {[%emt 0:00:36]} Rfe8 {[%emt 0:03:44]} 13. Re2 {[%emt 0:10:25]} Ne4 {[%emt 0:11:15]} 14. Qe1 {[%emt 0:04:20]} f5 {[%emt 0:10:35]} 15. a3 {[%emt 0:02:11]} Ndf6 {[%emt 0:16:26]} 16. Na2 {[%emt 0:03:43]} Qf4 {[%emt 0:10:09]} 17. c3 {[%emt 0:14:22]} Nh5 {[%emt 0:13:57]} 18. b3 {[%emt 0:05:27]} Qh6 {[%emt 0:04:32]} 19. Re3 {[%emt 0:04:01]} Nf4 {[%emt 0:03:47]} 20. Bf1 {[%emt 0:00:23]} Re6 {[%emt 0:04:11]} 21. Ne5 {[%emt 0:01:46]} Qg5 {[%emt 0:03:15]} 22. Nb4 {[%emt 0:03:44]} Rh6 {[%emt 0:00:37]} 23. Kh2 {[%emt 0:02:28]} Nf6 {[%emt 0:00:19]} *

[Event "FIDE WYCC Girls U18 2023"]
[Site "Montesilvano"]
[Date "2023.11.20"]
[Round "7.1"]
[White "Wikar, Martyna"]
[Black "Balabayeva, Xeniya"]
[Result "1/2-1/2"]
[ECO "C11"]
[WhiteElo "2228"]
[BlackElo "2192"]
[Annotator "RC"]
[PlyCount "93"]
[EventDate "2023.11.13"]
[EventType "swiss"]
[EventCountry "ITA"]
[SourceTitle "playchess.com"]
[Source "ChessBase"]
[SourceQuality "1"]
[TimeControl "40/5400+30:1800+30"]

1. e4 {[%emt 0:00:02]} e6 {[%emt 0:00:08]} 2. d4 {[%emt 0:00:08]} d5 {[%emt 0:00:06]} 3. Nc3 {[%emt 0:00:09]} Nf6 {[%emt 0:00:09]} 4. e5 {[%emt 0:00:14]} Nfd7 {[%emt 0:00:08]} 5. f4 {[%emt 0:00:09]} c5 {[%emt 0:00:10]} 6. Nf3 {[%emt 0:00:07]} Nc6 {[%emt 0:00:08]} 7. Be3 {[%emt 0:00:11]} cxd4 {[%emt 0:00:44]} 8. Nxd4 {[%emt 0:00:30]} Qb6 {[%emt 0:00:21]} 9. Qd2 {[%emt 0:00:32]} Qxb2 {[%emt 0:00:49]} 10. Rb1 {[%emt 0:00:08]} Qa3 {[%emt 0:00:03]} 11. Bb5 {[%emt 0:00:15]} Nxd4 {[%emt 0:00:30]} 12. Bxd4 {[%emt 0:00:18]} a6 {[%emt 0:00:26]} 13. Bxd7+ {[%emt 0:00:15]} Bxd7 {[%emt 0:00:06]} 14. Rb3 {[%emt 0:00:07]} Qe7 {[%emt 0:00:29]} 15. Rxb7 {[%emt 0:00:10]} Qh4+ {[%emt 0:00:22]} 16. Qf2 {[%emt 0:00:16]} Qxf2+ {[%emt 0:00:55]} 17. Kxf2 {[%emt 0:00:05]} Be7 {[%emt 0:02:38]} 18. Rhb1 {[%emt 0:00:08]} Bd8 {[%emt 0:03:46]} 19. Rb8 {[%emt 0:00:25]} Rxb8 {[%emt 0:00:24]} 20. Rxb8 {[%emt 0:00:02]} O-O {[%emt 0:41:15]} 21. Rb7 {[%emt 0:01:16]} Bc6 {[%emt 0:00:15]} 22. Ra7 {[%emt 0:00:32]} Ba5 {[%emt 0:00:10]} 23. Rxa6 {[%emt 0:00:13]} Bxc3 {[%emt 0:00:06]} 24. Bxc3 {[%emt 0:00:06]} Rc8 {[%emt 0:00:08]} 25. Ke3 {[%emt 0:00:57]} Bb5 {[%emt 0:05:08]} 26. Ra3 {[%emt 0:00:22]} h5 {[%emt 0:01:12]} 27. Kd2 {[%emt 0:20:12]} Rc4 {[%emt 0:05:48]} 28. Rb3 {[%emt 0:28:44]} Ba4 {[%emt 0:07:59]} 29. Rb4 {[%emt 0:06:57]} Rxb4 {[%emt 0:03:58]} 30. Bxb4 {[%emt 0:00:09]} f6 {[%emt 0:06:21]} 31. exf6 {[%emt 0:07:35]} gxf6 {[%emt 0:00:14]} 32. Bc3 {[%emt 0:00:48]} Kf7 {[%emt 0:00:27]} 33. Bd4 {[%emt 0:10:19]} Kg6 {[%emt 0:01:36]} 34. c3 {[%emt 0:00:57]} Kf5 {[%emt 0:00:22]} 35. Ke3 {[%emt 0:00:23]} e5 {[%emt 0:02:33]} 36. fxe5 {[%emt 0:00:13]} fxe5 {[%emt 0:00:02]} 37. Bb6 {[%emt 0:00:10]} Bb5 {[%emt 0:01:07]} 38. Bc7 {[%emt 0:00:58]} Bc6 {[%emt 0:01:54]} 39. g3 {[%emt 0:00:57]} Bb5 {[%emt 0:01:21]} 40. h3 {[%emt 0:00:00]} Ke6 {[%emt 0:00:00]} 41. g4 {[%emt 0:02:12]} hxg4 {[%emt 0:04:02]} 42. hxg4 {[%emt 0:00:06]} d4+ {[%emt 0:01:51]} 43. cxd4 {[%emt 0:02:46]} exd4+ {[%emt 0:00:05]} 44. Kxd4 {[%emt 0:00:06]} Kd7 {[%emt 0:00:22]} 45. Be5 {[%emt 0:00:47]} Kc6 {[%emt 0:00:26]} 46. g5 {[%emt 0:02:00]} Kb7 {[%emt 0:00:10]} 47. g6 {[%emt 0:01:19]} 1/2-1/2

[Event "FIDE WYCC Girls U18 2023"]
[Site "Montesilvano"]
[Date "2023.11.20"]
[Round "7.2"]
[White "Mungunzul, Bat-Erdene"]
[Black "Luong, Hoang Tu Linh"]
[Result "0-1"]
[ECO "E32"]
[WhiteElo "2111"]
[BlackElo "1887"]
[Annotator "NA RC"]
[PlyCount "146"]
[EventDate "2023.11.13"]
[EventType "swiss"]
[EventCountry "ITA"]
[SourceTitle "playchess.com"]
[Source "ChessBase"]
[SourceQuality "1"]
[TimeControl "40/5400+30:1800+30"]

1. d4 {[%emt 0:00:03]} Nf6 {[%emt 0:00:06]} 2. c4 {[%emt 0:00:07]} e6 {[%emt 0:00:05]} 3. Nc3 {[%emt 0:00:09]} Bb4 {[%emt 0:00:09]} 4. Qc2 {[%emt 0:00:10]} O-O {[%emt 0:00:19]} 5. a3 {[%emt 0:00:52]} Bxc3+ {[%emt 0:00:33]} 6. Qxc3 {[%emt 0:00:10]} d5 {[%emt 0:00:43]} 7. Bg5 {[%emt 0:01:05]} dxc4 {[%emt 0:01:38]} 8. Qxc4 {[%emt 0:04:52]} b6 {[%emt 0:00:25]} 9. Nf3 {[%emt 0:03:37]} Ba6 {[%emt 0:08:41]} 10. Qc2 {[%emt 0:01:17]} Nbd7 {[%emt 0:12:03]} 11. g3 {[%emt 0:16:48]} c5 {[%emt 0:07:35]} 12. Bxf6 {[%emt 0:02:07]} gxf6 {[%emt 0:14:41]} 13. Bg2 {[%emt 0:04:45]} Bb7 {[%emt 0:02:32]} 14. Rd1 {[%emt 0:06:29]} Qe7 {[%emt 0:02:52]} 15. O-O {[%emt 0:03:07]} Rac8 {[%emt 0:04:50]} 16. Ng5 {[%emt 0:09:11]} fxg5 {[%emt 0:00:22]} 17. Bxb7 {[%emt 0:00:04]} Rc7 {[%emt 0:01:28]} 18. Bg2 {[%emt 0:00:11]} Nf6 {[%emt 0:07:24]} 19. Qd2 {[%emt 0:01:38]} h6 {[%emt 0:00:42]} 20. h4 {[%emt 0:05:43]} Nh7 {[%emt 0:01:13]} 21. d5 {[%emt 0:00:59]} exd5 {[%emt 0:02:49]} 22. Qxd5 {[%emt 0:02:53]} gxh4 {[%emt 0:03:35]} 23. gxh4 {[%emt 0:03:55]} Qe6 {[%emt 0:05:49]} 24. Qh5 {[%emt 0:02:50]} Kh8 {[%emt 0:06:32]} 25. Kh2 {[%emt 0:05:13]} Re7 {[%emt 0:01:21]} 26. Rd5 {[%emt 0:08:33]} Qg6 {[%emt 0:04:09]} 27. Qf3 {[%emt 0:03:38]} Qf6 {[%emt 0:01:53]} 28. Rh5 {[%emt 0:01:25]} Qxf3 {[%emt 0:03:58]} 29. Bxf3 {[%emt 0:00:06]} Re6 {[%emt 0:00:19]} 30. Rd1 {[%emt 0:03:27]} Nf6 {[%emt 0:02:58]} 31. Rf5 {[%emt 0:00:17]} Rfe8 {[%emt 0:01:46]} 32. e3 {[%emt 0:00:52]} Kg7 {[%emt 0:01:44]} 33. Be2 {[%emt 0:00:19]} Ne4 {[%emt 0:01:06]} 34. Kg2 {[%emt 0:04:37]} Rf6 {[%emt 0:00:30]} 35. Rxf6 {[%emt 0:00:13]} Nxf6 {[%emt 0:00:10]} 36. Bf3 {[%emt 0:01:29]} Re7 {[%emt 0:00:55]} 37. Kg3 {[%emt 0:00:54]} Nd7 {[%emt 0:00:27]} 38. Rd5 {[%emt 0:01:14]} Nf6 {[%emt 0:00:35]} 39. Rd8 {[%emt 0:02:22]} Rd7 {[%emt 0:00:23]} 40. Rxd7 {[%emt 0:00:00]} Nxd7 {[%emt 0:00:00]} 41. Kf4 {[%emt 0:03:33]} Kf6 {[%emt 0:00:41]} 42. Be2 {[%emt 0:00:39]} Ne5 {[%emt 0:02:26]} 43. h5 {[%emt 0:00:48]} Ke6 {[%emt 0:22:54]} 44. Bf1 {[%emt 0:01:50]} c4 {[%emt 0:03:23]} 45. Ke4 {[%emt 0:05:32]} b5 {[%emt 0:02:01]} 46. Kd4 {[%emt 0:02:08]} Kd6 {[%emt 0:00:40]} 47. f4 {[%emt 0:07:53]} Nc6+ {[%emt 0:00:31]} 48. Ke4 {[%emt 0:00:14]} Ne7 {[%emt 0:00:32]} 49. Be2 {[%emt 0:01:35]} f6 {[%emt 0:00:35]} 50. f5 {[%emt 0:02:28]} Kc5 {[%emt 0:01:23]} 51. Bd1 {[%emt 0:00:58]} a5 {[%emt 0:00:46]} 52. Bc2 {[%emt 0:01:20]} b4 {[%emt 0:00:25]} 53. axb4+ {[%emt 0:01:19]} axb4 {[%emt 0:00:08]} 54. b3 {[%emt 0:02:43]} Nc6 {[%emt 0:00:27]} 55. Bd1 {[%emt 0:01:26]} cxb3 {[%emt 0:00:58]} 56. Bxb3 {[%emt 0:00:15]} Na5 {[%emt 0:00:02]} 57. Be6 {[%emt 0:00:39]} Nc4 {[%emt 0:01:08]} 58. Kd3 {[%emt 0:00:11]} Ne5+ {[%emt 0:00:32]} 59. Kc2 {[%emt 0:00:02]} Ng4 {[%emt 0:00:32]} 60. Kd3 {[%emt 0:00:09]} Nf2+ {[%emt 0:00:29]} 61. Ke2 {[%emt 0:00:21]} Ne4 {[%emt 0:00:16]} 62. Kd3 {[%emt 0:00:02]} Ng3 {[%emt 0:00:28]} 63. e4 {[%emt 0:01:50]} Nxh5 {[%emt 0:00:09]} 64. Bf7 {[%emt 0:00:50]} Ng3 {[%emt 0:00:31]} 65. e5 {[%emt 0:00:55]} fxe5 {[%emt 0:00:57]} 66. f6 {[%emt 0:00:02]} e4+ {[%emt 0:00:39]} 67. Ke3 {[%emt 0:00:13]} Nf5+ {[%emt 0:00:26]} 68. Kf4 {[%emt 0:00:03]} Nd6 {[%emt 0:00:17]} 69. Bg6 {[%emt 0:01:43]} Kd4 {[%emt 0:00:21]} 70. f7 {[%emt 0:02:37]} Nxf7 {[%emt 0:00:01]} 71. Bxf7 {[%emt 0:00:07]} e3 {[%emt 0:00:17]} 72. Bh5 {[%emt 0:00:10]} Kd3 {[%emt 0:00:35]} 73. Kf3 {[%emt 0:00:06]} Kd2 {[%emt 0:00:11]} 0-1